[Event "Swedish Chess Championship 2021: Sverigemastarklassen"]
[Site "Scandic Helsingborg Nord, Florettgatan 41, Helsingborg, Sweden"]
[Date "2021.07.10"]
[Round "8.1"]
[White "Cramling, Pia"]
[Black "Hillarp Persson, Tiger"]
[Result "0-1"]
[TimeControl "90 minutes for 40 moves + 30 minutes for the rest of the game + 30 seconds per move from move one."]
[WhiteTitle "GM"]
[BlackTitle "GM"]
[WhiteFideId "1700030"]
[BlackFideId "1700812"]
[WhiteElo "2459"]
[BlackElo "2542"]

1. d4 {[%clk 01:30:55]} {[%emt 00:00:04]} Nf6 {[%clk 01:30:54]} {[%emt
00:00:07]} 2. c4 {[%clk 01:31:09]} {[%emt 00:00:16]} g6 {[%clk 01:31:16]}
{[%emt 00:00:08]} 3. Nc3 {[%clk 01:31:29]} {[%emt 00:00:09]} Bg7 {[%clk
01:31:40]} {[%emt 00:00:07]} 4. e4 {[%clk 01:31:33]} {[%emt 00:00:27]} d6
{[%clk 01:32:03]} {[%emt 00:00:07]} 5. h3 {[%clk 01:31:53]} {[%emt 00:00:09]}
Nbd7 {[%clk 01:32:19]} {[%emt 00:00:15]} 6. Bg5 {[%clk 01:22:36]} {[%emt
00:09:46]} e5 {[%clk 01:26:29]} {[%emt 00:06:20]} 7. d5 {[%clk 01:22:50]}
{[%emt 00:00:16]} h6 {[%clk 01:26:37]} {[%emt 00:00:23]} 8. Be3 {[%clk
01:22:52]} {[%emt 00:00:28]} Nc5 {[%clk 01:26:58]} {[%emt 00:00:10]} 9. Bd3
{[%clk 01:18:10]} {[%emt 00:05:11]} Nxd3+ {[%clk 01:13:14]} {[%emt 00:14:15]}
10. Qxd3 {[%clk 01:18:35]} {[%emt 00:00:04]} Nd7 {[%clk 01:08:29]} {[%emt
00:05:15]} 11. Nge2 {[%clk 01:06:30]} {[%emt 00:12:34]} h5 {[%clk 01:05:58]}
{[%emt 00:03:02]} 12. h4 {[%clk 01:01:07]} {[%emt 00:05:53]} b6 {[%clk
00:59:22]} {[%emt 00:07:06]} 13. Qc2 {[%clk 00:57:12]} {[%emt 00:04:25]} a5
{[%clk 00:59:28]} {[%emt 00:00:24]} 14. Nc1 {[%clk 00:53:45]} {[%emt 00:03:57]}
Nc5 {[%clk 00:56:46]} {[%emt 00:03:13]} 15. f3 {[%clk 00:50:39]} {[%emt
00:03:34]} Bf6 {[%clk 00:40:26]} {[%emt 00:16:50]} 16. g3 {[%clk 00:48:22]}
{[%emt 00:02:46]} Bd7 {[%clk 00:40:46]} {[%emt 00:00:11]} 17. Nd3 {[%clk
00:48:27]} {[%emt 00:00:24]} Bg7 {[%clk 00:40:20]} {[%emt 00:00:56]} 18. Nxc5
{[%clk 00:46:36]} {[%emt 00:02:22]} bxc5 {[%clk 00:40:44]} {[%emt 00:00:07]} 19.
a4 {[%clk 00:43:51]} {[%emt 00:03:15]} f5 {[%clk 00:37:57]} {[%emt 00:03:17]}
20. O-O-O {[%clk 00:39:08]} {[%emt 00:05:12]} O-O {[%clk 00:38:00]} {[%emt
00:00:27]} 21. Rdf1 {[%clk 00:31:32]} {[%emt 00:08:05]} Rf7 {[%clk 00:36:11]}
{[%emt 00:02:20]} 22. Bg5 {[%clk 00:24:48]} {[%emt 00:07:15]} Qf8 {[%clk
00:24:38]} {[%emt 00:12:03]} 23. Qd3 {[%clk 00:23:17]} {[%emt 00:01:59]} Qb8
{[%clk 00:20:59]} {[%emt 00:04:12]} 24. Nb5 {[%clk 00:20:28]} {[%emt 00:03:18]}
Qb6 {[%clk 00:21:22]} {[%emt 00:00:07]} 25. Bd2 {[%clk 00:18:03]} {[%emt
00:02:55]} Raf8 {[%clk 00:21:39]} {[%emt 00:00:13]} 26. Kb1 {[%clk 00:16:46]}
{[%emt 00:01:41]} Kh7 {[%clk 00:19:19]} {[%emt 00:02:55]} 27. Ka2 {[%clk
00:16:40]} {[%emt 00:00:36]} Bh6 {[%clk 00:16:57]} {[%emt 00:02:53]} 28. Bxh6
{[%clk 00:14:54]} {[%emt 00:02:16]} Kxh6 {[%clk 00:17:21]} {[%emt 00:00:06]} 29.
f4 {[%clk 00:14:55]} {[%emt 00:00:27]} fxe4 {[%clk 00:10:49]} {[%emt 00:07:04]}
30. Qxe4 {[%clk 00:15:20]} {[%emt 00:00:05]} Qb8 {[%clk 00:10:29]} {[%emt
00:00:50]} 31. Qd3 {[%clk 00:12:09]} {[%emt 00:03:41]} exf4 {[%clk 00:08:01]}
{[%emt 00:02:59]} 32. Rxf4 {[%clk 00:12:32]} {[%emt 00:00:06]} Rxf4 {[%clk
00:07:53]} {[%emt 00:00:38]} 33. gxf4 {[%clk 00:12:48]} {[%emt 00:00:14]} Bxb5
{[%clk 00:07:34]} {[%emt 00:00:49]} 34. axb5 {[%clk 00:12:57]} {[%emt
00:00:20]} Qe8 {[%clk 00:07:14]} {[%emt 00:00:50]} 35. Rf1 {[%clk 00:05:59]}
{[%emt 00:07:28]} Qe7 {[%clk 00:06:28]} {[%emt 00:01:16]} 36. Rg1 {[%clk
00:05:55]} {[%emt 00:00:35]} Rf6 {[%clk 00:04:33]} {[%emt 00:02:24]} 37. Rf1
{[%clk 00:02:34]} {[%emt 00:03:51]} Rf5 {[%clk 00:02:18]} {[%emt 00:02:46]} 38.
Qc3 {[%clk 00:02:48]} {[%emt 00:00:15]} Rf8 {[%clk 00:02:39]} {[%emt 00:00:10]}
39. Qxa5 {[%clk 00:01:46]} {[%emt 00:01:31]} Qe2 {[%clk 00:02:33]} {[%emt
00:00:36]} 40. Rc1 {[%clk 00:02:11]} {[%emt 00:00:04]} Rxf4 {[%clk 00:02:16]}
{[%emt 00:00:50]} 41. Qc3 {[%clk 00:22:32]} {[%emt 00:10:07]} Rd4 {[%clk
00:30:03]} {[%emt 00:02:44]} 42. Rc2 {[%clk 00:16:48]} {[%emt 00:06:15]} Qe4
{[%clk 00:24:33]} {[%emt 00:05:59]} 43. Rh2 {[%clk 00:15:34]} {[%emt 00:01:43]}
Qf4 {[%clk 00:13:50]} {[%emt 00:11:14]} 44. Rh1 {[%clk 00:06:47]} {[%emt
00:09:16]} Kh7 {[%clk 00:11:53]} {[%emt 00:02:26]} 45. Kb3 {[%clk 00:04:55]}
{[%emt 00:02:23]} Rxc4 {[%clk 00:10:12]} {[%emt 00:02:13]} 46. Qxc4 {[%clk
00:05:19]} {[%emt 00:00:06]} Qf3+ {[%clk 00:10:34]} {[%emt 00:00:07]} 47. Ka2
{[%clk 00:01:57]} {[%emt 00:03:52]} Qxh1 {[%clk 00:10:56]} {[%emt 00:00:07]} 48.
Ka3 {[%clk 00:02:03]} {[%emt 00:00:22]} Qa1+ {[%clk 00:09:07]} {[%emt
00:02:21]} 49. Kb3 {[%clk 00:02:30]} {[%emt 00:00:03]} Qd1+ {[%clk 00:09:18]}
{[%emt 00:00:19]} 50. Ka3 {[%clk 00:02:55]} {[%emt 00:00:05]} Qe1 {[%clk
00:06:46]} {[%emt 00:03:02]} 51. Ka2 {[%clk 00:02:57]} {[%emt 00:00:28]} Qa5+
{[%clk 00:05:50]} {[%emt 00:01:26]} 52. Kb1 {[%clk 00:03:20]} {[%emt 00:00:06]}
Qb4 {[%clk 00:06:05]} {[%emt 00:00:16]} 53. Qe2 {[%clk 00:03:01]} {[%emt
00:00:46]} Qxh4 {[%clk 00:06:21]} {[%emt 00:00:17]} 54. Qe6 {[%clk 00:03:27]}
{[%emt 00:00:03]} Kh6 {[%clk 00:06:10]} {[%emt 00:00:39]} 55. b6 {[%clk
00:02:59]} {[%emt 00:01:00]} cxb6 {[%clk 00:06:27]} {[%emt 00:00:14]} 56. Qxd6
{[%clk 00:03:23]} {[%emt 00:00:06]} Qe4+ {[%clk 00:06:40]} {[%emt 00:00:16]} 57.
Ka1 {[%clk 00:03:11]} {[%emt 00:00:41]} h4 {[%clk 00:06:45]} {[%emt 00:00:26]}
58. Qf8+ {[%clk 00:02:55]} {[%emt 00:00:45]} Kh5 {[%clk 00:07:03]} {[%emt
00:00:12]} 59. d6 {[%clk 00:02:27]} {[%emt 00:00:59]} h3 {[%clk 00:07:21]}
{[%emt 00:00:12]} 60. Qe7 {[%clk 00:00:44]} {[%emt 00:02:13]} Qxe7 {[%clk
00:05:16]} {[%emt 00:02:36]} 61. dxe7 {[%clk 00:01:10]} {[%emt 00:00:04]} h2
{[%clk 00:05:34]} {[%emt 00:00:11]} 62. e8=Q {[%clk 00:01:37]} {[%emt
00:00:03]} h1=Q+ {[%clk 00:05:31]} {[%emt 00:00:10]} 63. Ka2 {[%clk 00:04:05]}
{[%emt 00:00:59]} Qd5+ {[%clk 00:05:37]} {[%emt 00:00:23]} 64. Ka3 {[%clk
00:04:24]} {[%emt 00:00:10]} Qd3+ {[%clk 00:04:52]} {[%emt 00:01:17]} 65. Ka2
{[%clk 00:04:35]} {[%emt 00:00:18]} Qc4+ {[%clk 00:04:45]} {[%emt 00:00:38]} 66.
Ka1 {[%clk 00:04:33]} {[%emt 00:00:31]} Qa6+ {[%clk 00:04:27]} {[%emt
00:00:49]} 67. Kb1 {[%clk 00:04:57]} {[%emt 00:00:06]} Qd3+ {[%clk 00:04:52]}
{[%emt 00:00:05]} 68. Ka2 {[%clk 00:04:59]} {[%emt 00:00:28]} b5 {[%clk
00:04:41]} {[%emt 00:00:42]} 69. Qc6 {[%clk 00:02:06]} {[%emt 00:03:22]} Qc4+
{[%clk 00:03:55]} {[%emt 00:01:17]} 70. Ka1 {[%clk 00:02:23]} {[%emt 00:00:12]}
b4 {[%clk 00:01:57]} {[%emt 00:02:29]} 71. Qf3+ {[%clk 00:02:23]} {[%emt
00:00:30]} Kh6 {[%clk 00:01:14]} {[%emt 00:01:14]} 72. Qh3+ {[%clk 00:00:55]}
{[%emt 00:01:56]} Kg7 {[%clk 00:01:36]} {[%emt 00:00:09]} 73. Qd7+ {[%clk
00:01:18]} {[%emt 00:00:08]} Qf7 {[%clk 00:01:59]} {[%emt 00:00:06]} 74. Qd3
{[%clk 00:00:59]} {[%emt 00:00:47]} b3 {[%clk 00:01:59]} {[%emt 00:00:31]} 75.
Kb1 {[%clk 00:01:16]} {[%emt 00:00:11]} Qf5 {[%clk 00:01:57]} {[%emt 00:00:34]}
76. Kc1 {[%clk 00:01:42]} {[%emt 00:00:03]} Qf4+ {[%clk 00:02:08]} {[%emt
00:00:19]} 77. Kb1 {[%clk 00:01:27]} {[%emt 00:00:43]} c4 {[%clk 00:01:44]}
{[%emt 00:00:56]} 78. Qd7+ {[%clk 00:01:05]} {[%emt 00:00:51]} Kh6 {[%clk
00:01:23]} {[%emt 00:00:51]} 79. Qh3+ {[%clk 00:01:19]} {[%emt 00:00:16]} Kg5
{[%clk 00:01:38]} {[%emt 00:00:16]} 80. Qg2+ {[%clk 00:01:12]} {[%emt
00:00:36]} Kf6 {[%clk 00:00:46]} {[%emt 00:01:29]} 81. Qc6+ {[%clk 00:00:59]}
{[%emt 00:00:41]} Ke7 {[%clk 00:00:41]} {[%emt 00:00:36]} 82. Qb7+ {[%clk
00:00:59]} {[%emt 00:00:29]} Kf8 {[%clk 00:00:43]} {[%emt 00:00:28]} 83. Qc8+
{[%clk 00:00:57]} {[%emt 00:00:32]} Kg7 {[%clk 00:01:02]} {[%emt 00:00:12]} 84.
Qd7+ {[%clk 00:01:18]} {[%emt 00:00:08]} Kh6 {[%clk 00:01:06]} {[%emt
00:00:26]} 85. Qh3+ {[%clk 00:01:40]} {[%emt 00:00:08]} Kg5 {[%clk 00:01:28]}
{[%emt 00:00:08]} 86. Qg2+ {[%clk 00:02:00]} {[%emt 00:00:07]} Qg4 {[%clk
00:01:44]} {[%emt 00:00:18]} 87. Qd2+ {[%clk 00:02:23]} {[%emt 00:00:06]} Kh4
{[%clk 00:01:42]} {[%emt 00:00:33]} 88. Qh2+ {[%clk 00:00:39]} {[%emt
00:02:13]} Qh3 {[%clk 00:01:46]} {[%emt 00:00:27]} 89. Qf2+ {[%clk 00:00:42]}
{[%emt 00:00:25]} Qg3 {[%clk 00:02:08]} {[%emt 00:00:10]} 90. Qd4+ {[%clk
00:00:40]} {[%emt 00:00:33]} Kh3 {[%clk 00:02:09]} {[%emt 00:00:27]} 91. Qd7+
{[%clk 00:00:44]} {[%emt 00:00:27]} Qg4 {[%clk 00:02:08]} {[%emt 00:00:30]} 0-1

[Event "Swedish Chess Championship 2021: Sverigemastarklassen"]
[Site "Scandic Helsingborg Nord, Florettgatan 41, Helsingborg, Sweden"]
[Date "2021.07.10"]
[Round "8.2"]
[White "Seo, Jung Min"]
[Black "Hector, Jonny"]
[Result "1-0"]
[TimeControl "90 minutes for 40 moves + 30 minutes for the rest of the game + 30 seconds per move from move one."]
[WhiteTitle "IM"]
[BlackTitle "GM"]
[WhiteFideId "1734687"]
[BlackFideId "1700090"]
[WhiteElo "2453"]
[BlackElo "2479"]

1. d4 {[%clk 01:30:58]} {[%emt 00:00:02]} Nc6 {[%clk 01:30:51]} {[%emt
00:00:09]} 2. Nf3 {[%clk 01:26:42]} {[%emt 00:04:47]} d5 {[%clk 01:31:06]}
{[%emt 00:00:13]} 3. Bf4 {[%clk 01:26:46]} {[%emt 00:00:27]} Bg4 {[%clk
01:26:58]} {[%emt 00:04:37]} 4. e3 {[%clk 01:26:19]} {[%emt 00:00:58]} e6
{[%clk 01:26:18]} {[%emt 00:01:09]} 5. c4 {[%clk 01:25:39]} {[%emt 00:01:11]}
Nf6 {[%clk 01:22:41]} {[%emt 00:04:06]} 6. Nc3 {[%clk 01:24:54]} {[%emt
00:01:15]} Bb4 {[%clk 01:21:04]} {[%emt 00:02:07]} 7. h3 {[%clk 01:12:45]}
{[%emt 00:12:40]} Bxf3 {[%clk 01:17:40]} {[%emt 00:03:53]} 8. Qxf3 {[%clk
01:13:09]} {[%emt 00:00:06]} Ne4 {[%clk 01:16:22]} {[%emt 00:01:47]} 9. Rc1
{[%clk 01:12:53]} {[%emt 00:00:47]} Qe7 {[%clk 01:02:18]} {[%emt 00:14:34]} 10.
cxd5 {[%clk 01:04:14]} {[%emt 00:09:10]} exd5 {[%clk 01:01:32]} {[%emt
00:01:15]} 11. Bb5 {[%clk 00:56:26]} {[%emt 00:08:18]} O-O {[%clk 01:00:47]}
{[%emt 00:01:13]} 12. Qd1 {[%clk 00:53:17]} {[%emt 00:03:40]} Na5 {[%clk
00:53:03]} {[%emt 00:08:15]} 13. O-O {[%clk 00:53:29]} {[%emt 00:00:18]} Nxc3
{[%clk 00:52:30]} {[%emt 00:01:02]} 14. bxc3 {[%clk 00:53:52]} {[%emt
00:00:07]} Ba3 {[%clk 00:52:23]} {[%emt 00:00:36]} 15. Rb1 {[%clk 00:51:13]}
{[%emt 00:03:10]} c6 {[%clk 00:52:07]} {[%emt 00:00:47]} 16. Bd3 {[%clk
00:51:12]} {[%emt 00:00:32]} b5 {[%clk 00:52:04]} {[%emt 00:00:33]} 17. Qc2
{[%clk 00:49:44]} {[%emt 00:01:58]} g6 {[%clk 00:48:41]} {[%emt 00:03:52]} 18.
e4 {[%clk 00:47:36]} {[%emt 00:02:38]} a6 {[%clk 00:48:37]} {[%emt 00:00:34]}
19. Rbe1 {[%clk 00:44:36]} {[%emt 00:03:30]} Rfe8 {[%clk 00:46:58]} {[%emt
00:02:09]} 20. Re2 {[%clk 00:32:37]} {[%emt 00:12:29]} Qd7 {[%clk 00:44:24]}
{[%emt 00:03:03]} 21. Rfe1 {[%clk 00:32:19]} {[%emt 00:00:49]} Rac8 {[%clk
00:39:37]} {[%emt 00:05:17]} 22. Qd1 {[%clk 00:28:10]} {[%emt 00:04:39]} Re6
{[%clk 00:35:33]} {[%emt 00:04:34]} 23. h4 {[%clk 00:25:32]} {[%emt 00:03:09]}
Rce8 {[%clk 00:28:34]} {[%emt 00:07:27]} 24. h5 {[%clk 00:22:06]} {[%emt
00:03:57]} dxe4 {[%clk 00:22:04]} {[%emt 00:07:00]} 25. Bxe4 {[%clk 00:22:05]}
{[%emt 00:00:32]} Nc4 {[%clk 00:21:47]} {[%emt 00:00:47]} 26. Qd3 {[%clk
00:20:10]} {[%emt 00:02:25]} Bd6 {[%clk 00:16:29]} {[%emt 00:05:47]} 27. Bc1
{[%clk 00:19:19]} {[%emt 00:01:21]} Bf8 {[%clk 00:14:09]} {[%emt 00:02:50]} 28.
Qf3 {[%clk 00:18:15]} {[%emt 00:01:34]} Rc8 {[%clk 00:06:31]} {[%emt 00:08:08]}
29. g3 {[%clk 00:17:31]} {[%emt 00:01:15]} Nd6 {[%clk 00:06:36]} {[%emt
00:00:24]} 30. Bd3 {[%clk 00:16:38]} {[%emt 00:01:22]} Rxe2 {[%clk 00:06:35]}
{[%emt 00:00:32]} 31. Rxe2 {[%clk 00:17:04]} {[%emt 00:00:04]} c5 {[%clk
00:06:33]} {[%emt 00:00:32]} 32. Be3 {[%clk 00:14:46]} {[%emt 00:02:48]} c4
{[%clk 00:06:46]} {[%emt 00:00:17]} 33. Bc2 {[%clk 00:15:02]} {[%emt 00:00:13]}
a5 {[%clk 00:06:38]} {[%emt 00:00:38]} 34. hxg6 {[%clk 00:12:44]} {[%emt
00:02:48]} hxg6 {[%clk 00:07:00]} {[%emt 00:00:07]} 35. Qd5 {[%clk 00:12:13]}
{[%emt 00:01:01]} Qc6 {[%clk 00:05:20]} {[%emt 00:02:11]} 36. Qg5 {[%clk
00:10:31]} {[%emt 00:02:12]} Ne4 {[%clk 00:05:11]} {[%emt 00:00:39]} 37. Bxe4
{[%clk 00:10:17]} {[%emt 00:00:45]} Qxe4 {[%clk 00:05:38]} {[%emt 00:00:03]} 38.
Qxb5 {[%clk 00:10:35]} {[%emt 00:00:12]} Qd3 {[%clk 00:03:45]} {[%emt
00:02:22]} 39. Qb2 {[%clk 00:10:35]} {[%emt 00:00:30]} a4 {[%clk 00:03:35]}
{[%emt 00:00:40]} 40. Rd2 {[%clk 00:09:38]} {[%emt 00:01:28]} Qf5 {[%clk
00:01:59]} {[%emt 00:02:05]} 41. d5 {[%clk 00:09:16]} {[%emt 00:00:54]} Bd6
{[%clk 00:28:49]} {[%emt 00:03:39]} 42. Qc2 {[%clk 00:32:49]} {[%emt 00:06:57]}
Qh3 {[%clk 00:28:38]} {[%emt 00:00:39]} 43. Bd4 {[%clk 00:30:09]} {[%emt
00:03:12]} Rb8 {[%clk 00:18:37]} {[%emt 00:10:31]} 44. Rd1 {[%clk 00:28:20]}
{[%emt 00:02:20]} a3 {[%clk 00:16:22]} {[%emt 00:02:44]} 45. Qe2 {[%clk
00:27:15]} {[%emt 00:01:34]} Qh5 {[%clk 00:13:43]} {[%emt 00:03:09]} 46. Qf1
{[%clk 00:10:14]} {[%emt 00:17:32]} Rb2 {[%clk 00:10:12]} {[%emt 00:04:02]} 47.
Re1 {[%clk 00:10:28]} {[%emt 00:00:16]} Qxd5 {[%clk 00:10:13]} {[%emt
00:00:29]} 48. Qh3 {[%clk 00:10:30]} {[%emt 00:00:28]} f6 {[%clk 00:07:03]}
{[%emt 00:03:40]} 49. Bxf6 {[%clk 00:06:39]} {[%emt 00:04:22]} Bf8 {[%clk
00:06:56]} {[%emt 00:00:36]} 50. Qh8+ {[%clk 00:06:59]} {[%emt 00:00:09]} Kf7
{[%clk 00:07:22]} {[%emt 00:00:04]} 51. Bd4 {[%clk 00:04:59]} {[%emt 00:02:30]}
1-0

[Event "Swedish Chess Championship 2021: Sverigemastarklassen"]
[Site "Scandic Helsingborg Nord, Florettgatan 41, Helsingborg, Sweden"]
[Date "2021.07.10"]
[Round "8.3"]
[White "Blomqvist, Erik"]
[Black "Storme, Isak"]
[Result "1-0"]
[TimeControl "90 minutes for 40 moves + 30 minutes for the rest of the game + 30 seconds per move from move one."]
[WhiteTitle "GM"]
[BlackTitle "FM"]
[WhiteFideId "1709437"]
[BlackFideId "1728113"]
[WhiteElo "2535"]
[BlackElo "2397"]

1. Nf3 {[%clk 01:30:51]} {[%emt 00:00:07]} Nf6 {[%clk 01:30:36]} {[%emt
00:00:25]} 2. g3 {[%clk 01:30:58]} {[%emt 00:00:23]} g6 {[%clk 01:30:53]}
{[%emt 00:00:12]} 3. b3 {[%clk 01:31:12]} {[%emt 00:00:17]} Bg7 {[%clk
01:30:38]} {[%emt 00:00:46]} 4. Bb2 {[%clk 01:31:34]} {[%emt 00:00:08]} b6
{[%clk 01:27:55]} {[%emt 00:03:14]} 5. c4 {[%clk 01:29:52]} {[%emt 00:02:11]}
c5 {[%clk 01:26:13]} {[%emt 00:02:12]} 6. Bg2 {[%clk 01:29:32]} {[%emt
00:00:50]} Bb7 {[%clk 01:26:34]} {[%emt 00:00:09]} 7. d4 {[%clk 01:27:38]}
{[%emt 00:02:25]} cxd4 {[%clk 01:26:15]} {[%emt 00:00:50]} 8. Qxd4 {[%clk
01:27:49]} {[%emt 00:00:19]} O-O {[%clk 01:21:48]} {[%emt 00:04:56]} 9. O-O
{[%clk 01:26:19]} {[%emt 00:01:59]} d6 {[%clk 01:13:31]} {[%emt 00:08:47]} 10.
Rd1 {[%clk 01:25:42]} {[%emt 00:01:06]} Nbd7 {[%clk 01:12:09]} {[%emt
00:01:53]} 11. Qh4 {[%clk 01:19:00]} {[%emt 00:07:12]} a6 {[%clk 01:05:04]}
{[%emt 00:07:36]} 12. Nc3 {[%clk 01:19:00]} {[%emt 00:00:30]} Rc8 {[%clk
00:59:05]} {[%emt 00:06:29]} 13. Ne1 {[%clk 01:10:17]} {[%emt 00:09:13]} Bxg2
{[%clk 00:55:15]} {[%emt 00:04:20]} 14. Nxg2 {[%clk 01:09:33]} {[%emt
00:01:15]} Rc5 {[%clk 00:48:54]} {[%emt 00:06:50]} 15. Ne3 {[%clk 01:05:23]}
{[%emt 00:04:41]} b5 {[%clk 00:43:41]} {[%emt 00:05:43]} 16. Rab1 {[%clk
00:50:12]} {[%emt 00:15:41]} Rh5 {[%clk 00:40:09]} {[%emt 00:04:02]} 17. Qf4
{[%clk 00:41:03]} {[%emt 00:09:39]} Bh6 {[%clk 00:39:26]} {[%emt 00:01:13]} 18.
Qd4 {[%clk 00:40:27]} {[%emt 00:01:06]} Bxe3 {[%clk 00:39:08]} {[%emt
00:00:48]} 19. Qxe3 {[%clk 00:37:15]} {[%emt 00:03:42]} bxc4 {[%clk 00:31:48]}
{[%emt 00:07:50]} 20. bxc4 {[%clk 00:34:36]} {[%emt 00:03:09]} Nb6 {[%clk
00:23:18]} {[%emt 00:08:57]} 21. Qd4 {[%clk 00:28:27]} {[%emt 00:06:42]} Qc8
{[%clk 00:17:41]} {[%emt 00:06:07]} 22. Qxb6 {[%clk 00:27:54]} {[%emt
00:01:03]} Qh3 {[%clk 00:17:39]} {[%emt 00:00:31]} 23. f3 {[%clk 00:21:22]}
{[%emt 00:07:02]} Qxh2+ {[%clk 00:16:36]} {[%emt 00:01:33]} 24. Kf1 {[%clk
00:21:51]} {[%emt 00:00:01]} Qh3+ {[%clk 00:15:53]} {[%emt 00:01:13]} 25. Ke1
{[%clk 00:18:08]} {[%emt 00:04:14]} Qxg3+ {[%clk 00:15:45]} {[%emt 00:00:38]}
26. Kd2 {[%clk 00:18:37]} {[%emt 00:00:01]} Rc5 {[%clk 00:14:52]} {[%emt
00:01:22]} 27. Kc2 {[%clk 00:06:03]} {[%emt 00:13:05]} Qf4 {[%clk 00:13:01]}
{[%emt 00:02:20]} 28. Qxa6 {[%clk 00:04:05]} {[%emt 00:02:30]} Rxc4 {[%clk
00:11:14]} {[%emt 00:02:16]} 29. Bc1 {[%clk 00:01:39]} {[%emt 00:02:55]} Qf5+
{[%clk 00:10:17]} {[%emt 00:01:26]} 30. Rd3 {[%clk 00:00:55]} {[%emt 00:01:15]}
Rfc8 {[%clk 00:09:16]} {[%emt 00:01:30]} 31. Bd2 {[%clk 00:01:12]} {[%emt
00:00:13]} d5 {[%clk 00:08:53]} {[%emt 00:00:53]} 32. Rb5 {[%clk 00:01:34]}
{[%emt 00:00:09]} h5 {[%clk 00:04:29]} {[%emt 00:04:53]} 33. e4 {[%clk
00:01:10]} {[%emt 00:00:54]} Qe5 {[%clk 00:03:54]} {[%emt 00:01:05]} 34. exd5
{[%clk 00:01:11]} {[%emt 00:00:29]} Qe2 {[%clk 00:03:15]} {[%emt 00:01:08]} 35.
d6 {[%clk 00:01:03]} {[%emt 00:00:39]} Nd5 {[%clk 00:00:58]} {[%emt 00:02:47]}
36. Rbxd5 {[%clk 00:00:33]} {[%emt 00:01:01]} Rxc3+ {[%clk 00:01:02]} {[%emt
00:00:27]} 37. Kb2 {[%clk 00:00:34]} {[%emt 00:00:28]} Rc2+ {[%clk 00:01:16]}
{[%emt 00:00:16]} 38. Ka3 {[%clk 00:00:39]} {[%emt 00:00:26]} exd6 {[%clk
00:00:35]} {[%emt 00:01:10]} 39. Rxd6 {[%clk 00:00:47]} {[%emt 00:00:22]} Qe8
{[%clk 00:00:34]} {[%emt 00:00:31]} 40. Kb3 {[%clk 00:00:33]} {[%emt 00:00:43]}
Qe5 {[%clk 00:00:32]} {[%emt 00:00:33]} 41. Rd8+ {[%clk 00:23:05]} {[%emt
00:07:57]} Kh7 {[%clk 00:28:48]} {[%emt 00:02:14]} 42. Rxc8 {[%clk 00:22:49]}
{[%emt 00:00:46]} Qb2+ {[%clk 00:27:25]} {[%emt 00:01:54]} 43. Ka4 {[%clk
00:23:17]} {[%emt 00:00:02]} Qxa2+ {[%clk 00:27:12]} {[%emt 00:00:42]} 44. Ra3
{[%clk 00:23:10]} {[%emt 00:00:37]} Rxd2 {[%clk 00:26:59]} {[%emt 00:00:44]} 45.
Qf6 {[%clk 00:22:42]} {[%emt 00:00:54]} 1-0

[Event "Swedish Chess Championship 2021: Sverigemastarklassen"]
[Site "Scandic Helsingborg Nord, Florettgatan 41, Helsingborg, Sweden"]
[Date "2021.07.10"]
[Round "8.4"]
[White "Smith, Axel"]
[Black "Westerberg, Jonathan"]
[Result "1-0"]
[TimeControl "90 minutes for 40 moves + 30 minutes for the rest of the game + 30 seconds per move from move one."]
[WhiteTitle "GM"]
[BlackTitle "GM"]
[WhiteFideId "1707930"]
[BlackFideId "1701754"]
[WhiteElo "2453"]
[BlackElo "2534"]

1. d4 {[%clk 01:30:59]} {[%emt 00:04:44]} Nf6 {[%clk 01:30:32]} {[%emt
00:00:28]} 2. c4 {[%clk 01:31:26]} {[%emt 00:00:03]} e6 {[%clk 01:30:38]}
{[%emt 00:00:23]} 3. Nc3 {[%clk 01:31:55]} {[%emt 00:00:02]} Bb4 {[%clk
01:30:47]} {[%emt 00:00:21]} 4. f3 {[%clk 01:32:23]} {[%emt 00:00:03]} c5
{[%clk 01:30:50]} {[%emt 00:00:26]} 5. d5 {[%clk 01:32:51]} {[%emt 00:00:02]}
b5 {[%clk 01:30:30]} {[%emt 00:00:49]} 6. e4 {[%clk 01:32:46]} {[%emt
00:00:36]} d6 {[%clk 01:30:53]} {[%emt 00:00:06]} 7. Bd2 {[%clk 01:29:27]}
{[%emt 00:03:49]} Bxc3 {[%clk 01:29:36]} {[%emt 00:01:48]} 8. Bxc3 {[%clk
01:27:54]} {[%emt 00:02:03]} b4 {[%clk 01:30:04]} {[%emt 00:00:01]} 9. Bd2
{[%clk 01:26:17]} {[%emt 00:02:08]} O-O {[%clk 01:24:45]} {[%emt 00:05:48]} 10.
Bd3 {[%clk 01:26:19]} {[%emt 00:00:27]} e5 {[%clk 01:17:33]} {[%emt 00:07:42]}
11. Ne2 {[%clk 01:25:52]} {[%emt 00:00:58]} Nh5 {[%clk 01:07:37]} {[%emt
00:10:25]} 12. Qc2 {[%clk 01:13:30]} {[%emt 00:12:53]} a5 {[%clk 01:05:55]}
{[%emt 00:02:12]} 13. Be3 {[%clk 00:57:38]} {[%emt 00:16:21]} Qh4+ {[%clk
00:55:39]} {[%emt 00:10:46]} 14. g3 {[%clk 00:55:42]} {[%emt 00:02:28]} Qf6
{[%clk 00:55:45]} {[%emt 00:00:23]} 15. Rf1 {[%clk 00:50:29]} {[%emt 00:05:43]}
a4 {[%clk 00:54:09]} {[%emt 00:02:06]} 16. Qd2 {[%clk 00:50:24]} {[%emt
00:00:35]} a3 {[%clk 00:54:02]} {[%emt 00:00:37]} 17. b3 {[%clk 00:49:44]}
{[%emt 00:01:10]} Nf4 {[%clk 00:46:03]} {[%emt 00:08:29]} 18. O-O-O {[%clk
00:49:56]} {[%emt 00:00:18]} Nxe2+ {[%clk 00:31:54]} {[%emt 00:14:39]} 19. Qxe2
{[%clk 00:49:38]} {[%emt 00:00:49]} Qe7 {[%clk 00:29:52]} {[%emt 00:02:32]} 20.
g4 {[%clk 00:49:32]} {[%emt 00:00:36]} Qh4 {[%clk 00:26:54]} {[%emt 00:03:27]}
21. Rg1 {[%clk 00:43:42]} {[%emt 00:06:21]} Re8 {[%clk 00:23:50]} {[%emt
00:03:34]} 22. Qd2 {[%clk 00:39:04]} {[%emt 00:05:07]} h6 {[%clk 00:16:30]}
{[%emt 00:07:51]} 23. g5 {[%clk 00:31:14]} {[%emt 00:08:20]} hxg5 {[%clk
00:16:18]} {[%emt 00:00:40]} 24. Rxg5 {[%clk 00:27:49]} {[%emt 00:03:56]} Nd7
{[%clk 00:15:38]} {[%emt 00:01:10]} 25. Qg2 {[%clk 00:21:35]} {[%emt 00:06:44]}
Qh7 {[%clk 00:13:45]} {[%emt 00:02:23]} 26. Rg1 {[%clk 00:21:30]} {[%emt
00:00:35]} g6 {[%clk 00:13:34]} {[%emt 00:00:41]} 27. h4 {[%clk 00:20:39]}
{[%emt 00:01:21]} Nf6 {[%clk 00:13:26]} {[%emt 00:00:38]} 28. h5 {[%clk
00:18:53]} {[%emt 00:02:16]} Nxh5 {[%clk 00:07:40]} {[%emt 00:06:17]} 29. Rxh5
{[%clk 00:18:54]} {[%emt 00:00:28]} 1-0